[Event "European Amateur-ch U2300 2019"]
[Site "Rhodes"]
[Date "2019.04.10"]
[Round "5.2"]
[White "Brouwer, Dennis"]
[Black "Samaridis, Konstantinos"]
[Result "1-0"]
[ECO "B70"]
[WhiteElo "2179"]
[BlackElo "2022"]
[Annotator "NA"]
[PlyCount "79"]
[EventDate "2019.04.06"]
[EventType "swiss"]
[EventCountry "GRE"]
[SourceTitle "playchess.com"]
[Source "ChessBase"]
[SourceQuality "1"]
[TimeControl "40/5400+30:1800+30"]

1. e4 {[%emt 0:00:00]} c5 {[%emt 0:00:48]} 2. Nc3 {[%emt 0:00:17]} d6 {[%emt 0:00:16]} 3. Nge2 {[%emt 0:00:18]} Nf6 {[%emt 0:02:25]} 4. d4 {[%emt 0:00:13]} cxd4 {[%emt 0:00:06]} 5. Nxd4 {[%emt 0:00:06]} g6 {[%emt 0:00:03]} 6. g3 {[%emt 0:00:44]} Nc6 {[%emt 0:00:19]} 7. Nde2 {[%emt 0:00:24]} Bg7 {[%emt 0:00:05]} 8. Bg2 {[%emt 0:00:08]} Bd7 {[%emt 0:00:02]} 9. O-O {[%emt 0:05:59]} Qc8 {[%emt 0:00:13]} 10. Bg5 $146 {[%emt 0:07:52] B70: Sicilian Dragon: 6 g3 and 6 Be2 (without a later Be3)} ({Predecessor:} 10. Nf4 O-O 11. Be3 Ng4 12. Bd2 Nge5 13. b3 f5 14. Rc1 Kh8 15. exf5 Bxf5 16. Ncd5 g5 17. Nd3 g4 18. Nxe5 dxe5 {1-0 (43) Efimenko,Z (2703)-Motylev,A (2690) Poikovsky 2011}) 10... h6 {[%emt 0:06:23]} 11. Be3 {[%emt 0:01:12]} Bh3 {[%emt 0:03:07]} 12. Qc1 {[%emt 0:16:09]} h5 {[%emt 0:15:40]} 13. f3 {[%emt 0:03:19]} h4 {[%emt 0:13:28]} 14. Bxh3 {[%emt 0:01:34]} Qxh3 {[%emt 0:00:08]} 15. Nf4 {[%emt 0:05:08]} Qd7 {[%emt 0:02:17]} 16. g4 {[%emt 0:11:00]} Nxg4 {[%emt 0:19:30]} 17. fxg4 {[%emt 0:00:10]} Qxg4+ {[%emt 0:00:04]} 18. Kf2 $1 {[%emt 0:02:53]} ({Much worse is} 18. Kh1 Bxc3 19. bxc3 g5 $17) 18... Nd4 {[%emt 0:05:55]} (18... Rc8 $14) 19. Qd2 {[%emt 0:06:58]} Nf3 {[%emt 0:03:17]} 20. Qe2 {[%emt 0:04:21]} Nxh2 {[%emt 0:00:52]} 21. Rg1 {[%emt 0:02:05]} Qc8 {[%emt 0:06:32]} 22. Rg2 {[%emt 0:01:23]} Be5 $18 {[%emt 0:03:31]} 23. Rh1 {[%emt 0:02:21]} Bxc3 {[%emt 0:12:18]} 24. bxc3 {[%emt 0:00:15]} Qxc3 {[%emt 0:00:25]} 25. Rhxh2 {[%emt 0:02:55]} Rc8 {[%emt 0:00:19]} 26. Qb5+ {[%emt 0:05:39]} Kf8 {[%emt 0:02:10]} 27. Kf3 {[%emt 0:00:32]} Qf6 {[%emt 0:01:57]} 28. Qg5 {[%emt 0:01:53]} h3 {[%emt 0:01:05]} 29. Qxf6 {[%emt 0:00:29]} exf6 {[%emt 0:00:05]} 30. Rd2 {[%emt 0:00:53]} Ke7 {[%emt 0:00:29]} 31. Bxa7 {[%emt 0:03:29]} Rc3+ {[%emt 0:00:08]} 32. Rd3 {[%emt 0:04:49]} Rxc2 {[%emt 0:00:06]} 33. Rxc2 {[%emt 0:00:11]} h2 {[%emt 0:00:02]} 34. Rc7+ {[%emt 0:00:25]} Kd8 {[%emt 0:00:21]} 35. Rc1 {[%emt 0:00:10]} h1=Q+ {[%emt 0:01:21]} 36. Rxh1 {[%emt 0:00:06]} Rxh1 {[%emt 0:00:04]} 37. Rxd6+ {[%emt 0:00:13]} Ke7 {[%emt 0:00:24]} 38. Bc5 {[%emt 0:01:03]} Rf1+ {[%emt 0:00:39]} 39. Ke3 {[%emt 0:00:54]} Rc1 {[%emt 0:00:34]} 40. Nd5+ {[%emt 0:00:00]} 1-0

[Event "European Amateur-ch U2300 2019"]
[Site "Rhodes"]
[Date "2019.04.10"]
[Round "5.3"]
[White "Shukan, Alexander"]
[Black "Andreev, Stanislav"]
[Result "0-1"]
[ECO "B11"]
[WhiteElo "2088"]
[BlackElo "2140"]
[Annotator "NA"]
[PlyCount "88"]
[EventDate "2019.04.06"]
[EventType "swiss"]
[EventCountry "GRE"]
[SourceTitle "playchess.com"]
[Source "ChessBase"]
[SourceQuality "1"]
[TimeControl "40/5400+30:1800+30"]

1. e4 {[%emt 0:00:00]} c6 {[%emt 0:00:00]} 2. Nc3 {[%emt 0:00:00]} d5 {[%emt 0:00:00]} 3. Nf3 {[%emt 0:00:00]} dxe4 {[%emt 0:01:07]} 4. Nxe4 {[%emt 0:00:00]} Nf6 {[%emt 0:00:08]} 5. Qe2 {[%emt 0:00:00]} Nxe4 {[%emt 0:01:00]} 6. Qxe4 {[%emt 0:00:00]} Qa5 {[%emt 0:00:22] B11: Caro-Kann: Two Knights Variation} 7. Bc4 {[%emt 0:08:05]} (7. Bd3 Na6 8. Qe5 Qxe5+ 9. Nxe5 Nb4 10. Be4 f6 11. c3 Nd5 12. Nf3 a5 13. d4 a4 14. Bd2 {½-½ (41) Adams,M (2703)-Howell,D (2696) London 2018}) 7... Bf5 {[%emt 0:01:03]} 8. Qf4 {[%emt 0:17:05]} e6 {[%emt 0:03:30]} 9. O-O $146 {[%emt 0:03:39]} ({Predecessor:} 9. c3 Be7 10. d4 Nd7 11. O-O O-O 12. a4 Rac8 13. Nh4 Bc2 14. Re1 {0-1 (37) Nayhebaver,M (2471)-Tica,S (2444) Le Castella 2018}) 9... Be7 {[%emt 0:12:26]} 10. d3 {[%emt 0:20:22]} O-O {[%emt 0:04:18]} 11. Bd2 {[%emt 0:00:59]} Qd8 {[%emt 0:03:39]} 12. Bc3 {[%emt 0:01:14]} Nd7 {[%emt 0:04:49]} 13. g4 {[%emt 0:00:58]} Bg6 {[%emt 0:03:11]} 14. h4 {[%emt 0:05:01]} e5 {[%emt 0:17:28]} 15. Nxe5 {[%emt 0:09:29]} Nxe5 {[%emt 0:02:30]} 16. Qxe5 {[%emt 0:00:06]} Bf6 {[%emt 0:00:09]} 17. Qh2 {[%emt 0:00:12]} Bxh4 {[%emt 0:03:49]} 18. f4 {[%emt 0:00:26]} b5 {[%emt 0:01:28]} 19. Bb3 $1 {[%emt 0:00:34]} a5 {[%emt 0:08:20]} 20. a3 {[%emt 0:08:04]} h6 {[%emt 0:03:24]} 21. g5 {[%emt 0:00:20]} hxg5 $15 {[%emt 0:00:53]} 22. f5 {[%emt 0:00:05]} (22. fxg5 $11 {remains equal.} Qxg5+ 23. Kh1) 22... Bh5 {[%emt 0:03:03]} 23. Qe5 {[%emt 0:04:20]} Qf6 {[%emt 0:00:06]} 24. Qc7 {[%emt 0:01:31]} Qd8 {[%emt 0:02:36]} 25. Qe5 {[%emt 0:01:05]} Qf6 {[%emt 0:00:05]} 26. Qc7 {[%emt 0:00:59]} Qd8 {[%emt 0:00:04]} 27. Qxc6 {[%emt 0:00:37]} Rb8 {[%emt 0:01:43]} 28. Be5 {[%emt 0:01:08]} a4 {[%emt 0:04:31]} 29. Ba2 {[%emt 0:04:14]} Rc8 {[%emt 0:02:47]} 30. Qg2 {[%emt 0:02:36]} Re8 {[%emt 0:00:20]} 31. d4 {[%emt 0:00:40]} Rxe5 {[%emt 0:00:09]} 32. dxe5 {[%emt 0:00:23]} Qd4+ {[%emt 0:00:05]} 33. Kh1 {[%emt 0:00:29]} Qxe5 {[%emt 0:00:17]} 34. c3 {[%emt 0:02:03]} Be2 {[%emt 0:01:54]} 35. Qd5 {[%emt 0:03:14]} Qf6 {[%emt 0:06:47]} 36. Rfd1 {[%emt 0:02:50]} g4 {[%emt 0:00:46]} 37. Kg1 {[%emt 0:02:12]} Bg5 {[%emt 0:01:07]} 38. Kf2 {[%emt 0:00:37]} Bf3 {[%emt 0:01:41]} 39. Qxb5 {[%emt 0:00:59]} Qh6 {[%emt 0:00:45]} 40. Bxf7+ {[%emt 0:00:00]} Kh8 {[%emt 0:00:00]} 41. Qe5 {[%emt 0:27:31]} Bf4 {[%emt 0:12:47]} 42. Rh1 {[%emt 0:01:37]} Bxh1 {[%emt 0:00:36]} 43. Qe7 {[%emt 0:02:52]} Qh2+ {[%emt 0:02:52]} 44. Ke1 {[%emt 0:00:06]} Bd2+ {[%emt 0:02:27]} 0-1

[Event "European Amateur-ch U2300 2019"]
[Site "Rhodes"]
[Date "2019.04.10"]
[Round "5.4"]
[White "Zherebtsova, Alexandra"]
[Black "Cmiel, Thorsten"]
[Result "1-0"]
[ECO "E12"]
[WhiteElo "2203"]
[BlackElo "2109"]
[Annotator "NA"]
[PlyCount "87"]
[EventDate "2019.04.06"]
[EventType "swiss"]
[EventCountry "GRE"]
[SourceTitle "playchess.com"]
[Source "ChessBase"]
[SourceQuality "1"]
[TimeControl "40/5400+30:1800+30"]

1. d4 {[%emt 0:00:00]} Nf6 {[%emt 0:03:45]} 2. Nf3 {[%emt 0:00:00]} e6 {[%emt 0:02:00]} 3. c4 {[%emt 0:00:00]} b6 {[%emt 0:02:36]} 4. a3 {[%emt 0:00:00]} Bb7 {[%emt 0:00:07]} 5. Nc3 {[%emt 0:00:00]} g6 {[%emt 0:00:59]} 6. Qc2 {[%emt 0:05:13]} Bg7 {[%emt 0:03:02]} 7. e4 {[%emt 0:01:08]} O-O {[%emt 0:00:43]} 8. e5 {[%emt 0:13:40] E12: Queen's Indian: Unusual White 4th moves, 4 a3, 4 Nc3 Bb7 5 a3 and 4 Nc3 Bb7} (8. Be2 d5 9. cxd5 exd5 10. e5 Ne4 11. Be3 Nd7 12. Rd1 c5 13. dxc5 Nxc3 14. Qxc3 bxc5 15. Bxc5 Rc8 {0-1 (55) Dreev,A (2670)-Mamedyarov,S (2817) chess.com INT 2019}) 8... Ne8 {[%emt 0:00:35]} 9. h4 $146 {[%emt 0:01:29]} ({Predecessor:} 9. Bg5 f6 10. exf6 Bxf6 11. Bh6 Bg7 12. Bxg7 Nxg7 13. d5 c5 14. O-O-O exd5 15. cxd5 d6 {0-1 (32) Ortega Hermida,D (2389)-Hernandez Carmenates,H (2541) Gran Canaria 2010}) 9... c5 {[%emt 0:05:01]} 10. Bg5 {[%emt 0:21:08]} f6 {[%emt 0:01:49]} 11. exf6 {[%emt 0:00:04]} Nxf6 {[%emt 0:06:19]} 12. O-O-O {[%emt 0:10:01]} (12. d5 $16) 12... Bxf3 $1 {[%emt 0:05:12]} 13. gxf3 {[%emt 0:00:43]} Nc6 {[%emt 0:00:07]} 14. Ne2 {[%emt 0:07:31]} cxd4 {[%emt 0:05:41]} 15. h5 {[%emt 0:02:30]} d3 {[%emt 0:06:05]} (15... Qe8 $5 {[%cal Rf6h5]} 16. hxg6 Qxg6 17. Qxg6 hxg6 $11) 16. Rxd3 {[%emt 0:02:06]} Ne5 {[%emt 0:01:27]} 17. Re3 {[%emt 0:06:06]} Nxc4 $1 {[%emt 0:00:29]} 18. Rc3 {[%emt 0:00:08]} ({Don't go for} 18. Qxc4 $2 Rc8 $19) 18... Ne5 {[%emt 0:06:59]} 19. f4 {[%emt 0:00:30]} Nf7 {[%emt 0:00:52]} 20. Bh4 {[%emt 0:01:43]} Nh8 {[%emt 0:02:44]} 21. h6 {[%emt 0:11:08]} Bxh6 $18 {[%emt 0:01:02]} 22. Bxf6 {[%emt 0:00:04]} Bxf4+ {[%emt 0:02:18]} 23. Nxf4 {[%emt 0:00:02]} Qxf6 {[%emt 0:00:51]} 24. Nd3 {[%emt 0:01:13]} Rad8 {[%emt 0:06:17]} 25. Kb1 {[%emt 0:02:31]} Rf7 {[%emt 0:07:29]} 26. Bg2 {[%emt 0:01:05]} Kg7 {[%emt 0:03:12]} 27. f4 {[%emt 0:02:41]} d6 {[%emt 0:01:12]} 28. Rc4 {[%emt 0:02:37]} Rdd7 {[%emt 0:00:43]} 29. Re1 {[%emt 0:01:42]} Rfe7 {[%emt 0:00:20]} 30. Bh3 {[%emt 0:01:41]} Nf7 {[%emt 0:00:15]} 31. Qe2 {[%emt 0:01:30]} Nd8 {[%emt 0:02:04]} 32. Re4 {[%emt 0:00:59]} Kf7 {[%emt 0:00:18]} 33. Nb4 {[%emt 0:03:14]} Rc7 {[%emt 0:01:13]} 34. Nc2 {[%emt 0:00:42]} d5 {[%emt 0:01:32]} 35. Re3 {[%emt 0:00:38]} Rc4 {[%emt 0:00:10]} 36. Nb4 {[%emt 0:00:56]} Rd4 {[%emt 0:03:52]} 37. Nd3 {[%emt 0:00:45]} a5 {[%emt 0:00:12]} 38. Ne5+ {[%emt 0:00:46]} Kg7 {[%emt 0:00:03]} 39. Nd3 {[%emt 0:00:22]} Kf7 {[%emt 0:00:05]} 40. Rg1 {[%emt 0:00:00]} Kf8 {[%emt 0:00:00]} 41. Rc1 {[%emt 0:01:16]} Rc4 {[%emt 0:04:40]} 42. Rxc4 {[%emt 0:04:38]} dxc4 {[%emt 0:00:02]} 43. Ne5 {[%emt 0:01:01]} b5 {[%emt 0:00:23]} 44. Qd2 {[%emt 0:04:57]} 1-0

[Event "European Amateur-ch U2300 2019"]
[Site "Rhodes"]
[Date "2019.04.10"]
[Round "5.5"]
[White "Van De Perre, Tom"]
[Black "Stavropoulos, Konstantinos"]
[Result "1/2-1/2"]
[ECO "B43"]
[WhiteElo "2102"]
[BlackElo "2001"]
[Annotator "NA"]
[PlyCount "43"]
[EventDate "2019.04.06"]
[EventType "swiss"]
[EventCountry "GRE"]
[SourceTitle "playchess.com"]
[Source "ChessBase"]
[SourceQuality "1"]
[TimeControl "40/5400+30:1800+30"]

1. e4 {[%emt 0:00:00]} c5 {[%emt 0:01:16]} 2. Nc3 {[%emt 0:00:00]} a6 {[%emt 0:05:27]} 3. Nge2 {[%emt 0:06:56]} e6 {[%emt 0:02:12]} 4. d4 {[%emt 0:00:54]} cxd4 {[%emt 0:00:04]} 5. Nxd4 {[%emt 0:00:05]} Qc7 {[%emt 0:00:34]} 6. Bd3 {[%emt 0:00:56]} Nc6 {[%emt 0:00:28]} 7. Nxc6 {[%emt 0:01:17]} Qxc6 {[%emt 0:01:58] B43: Sicilian: Kan Variation: 5 Nc3} (7... dxc6 8. O-O e5 9. f4 Nf6 10. Kh1 Bd6 11. f5 Bc5 12. a4 a5 13. Qf3 b6 14. Qg3 Rg8 15. Bg5 Qe7 16. Rad1 h6 17. Be3 Bxe3 18. Qxe3 {1-0 (50) Guseinov,G (2621)-Korneev,O (2618) Nakhchivan 2014}) 8. O-O {[%emt 0:02:59]} b5 {[%emt 0:01:27]} 9. Qe2 {[%emt 0:11:43]} Bb7 {[%emt 0:00:24]} 10. a4 {[%emt 0:09:04]} b4 {[%emt 0:00:57]} 11. Nd5 $1 {[%emt 0:01:38]} Nf6 {[%emt 0:04:58]} 12. Nxf6+ {[%emt 0:03:28]} gxf6 {[%emt 0:00:13]} 13. f3 $146 {[%emt 0:03:47]} ({Predecessor:} 13. Be3 Bc5 14. Rfc1 Qd6 15. Bxc5 Qxc5 16. c3 Ke7 17. cxb4 Qxb4 {1-0 (61) Larsen,S (2242)-Vinchev,S (2315) ICCF email 2009}) 13... Bd6 {[%emt 0:05:43]} 14. Bd2 {[%emt 0:05:08]} Qc5+ {[%emt 0:13:19]} 15. Kh1 {[%emt 0:01:55]} (15. Be3 $14 Qe5 16. f4 Qxb2 17. Qf2) 15... Qh5 $1 {[%emt 0:00:16]} 16. h3 {[%emt 0:07:35]} Rg8 {[%emt 0:04:30]} 17. Qf2 {[%emt 0:07:18]} Ke7 {[%emt 0:06:37]} 18. f4 {[%emt 0:09:33]} f5 {[%emt 0:11:18]} 19. Qf3 {[%emt 0:10:21]} Qxf3 {[%emt 0:03:32]} 20. gxf3 $17 {[%emt 0:00:13]} Bc5 {[%emt 0:03:35]} 21. Be1 {[%emt 0:01:00]} fxe4 {[%emt 0:09:53]} 22. Bh4+ {[%emt 0:00:21]} 1/2-1/2

[Event "European Amateur-ch U2300 2019"]
[Site "Rhodes"]
[Date "2019.04.11"]
[Round "6.1"]
[White "Yungucu, Arda"]
[Black "Stavropoulos, Konstantinos"]
[Result "1-0"]
[ECO "D15"]
[WhiteElo "1959"]
[BlackElo "2001"]
[Annotator "NA"]
[PlyCount "103"]
[EventDate "2019.04.06"]
[EventType "swiss"]
[EventCountry "GRE"]
[SourceTitle "playchess.com"]
[Source "ChessBase"]
[SourceQuality "1"]
[TimeControl "40/5400+30:1800+30"]

1. Nf3 {[%emt 0:00:00]} c5 {[%emt 0:00:24]} 2. c3 {[%emt 0:00:18]} Nc6 {[%emt 0:00:50]} 3. d4 {[%emt 0:00:20]} cxd4 {[%emt 0:00:08]} 4. cxd4 {[%emt 0:00:18]} d5 {[%emt 0:00:10]} 5. Nc3 {[%emt 0:01:15]} Nf6 {[%emt 0:06:58]} 6. e3 {[%emt 0:02:24]} a6 {[%emt 0:04:04]} 7. Bd3 {[%emt 0:02:20]} Bg4 {[%emt 0:01:36]} 8. h3 {[%emt 0:15:10]} Bh5 {[%emt 0:02:54]} 9. g4 {[%emt 0:05:02]} Bg6 {[%emt 0:01:45]} 10. Ne5 {[%emt 0:04:06]} e6 {[%emt 0:13:18]} 11. Nxg6 {[%emt 0:14:04]} hxg6 {[%emt 0:00:05]} 12. Bf1 {[%emt 0:01:31]} g5 {[%emt 0:10:43]} 13. Bg2 $11 {[%emt 0:07:11]} Bd6 {[%emt 0:01:09]} 14. a3 {[%emt 0:05:20]} Bb8 {[%emt 0:16:38]} 15. Bd2 {[%emt 0:08:02]} Qd6 {[%emt 0:03:25]} 16. Qb3 {[%emt 0:07:01]} Ra7 {[%emt 0:03:07]} 17. Rc1 {[%emt 0:01:44]} O-O {[%emt 0:00:39]} 18. Ne2 {[%emt 0:06:37]} b5 {[%emt 0:05:24]} 19. h4 {[%emt 0:03:37]} gxh4 {[%emt 0:02:38]} 20. Rxh4 {[%emt 0:06:04]} Rc7 {[%emt 0:01:34]} 21. e4 {[%emt 0:01:21]} Nxe4 {[%emt 0:06:08]} 22. Bxe4 {[%emt 0:01:25]} dxe4 {[%emt 0:01:13]} 23. Qh3 {[%emt 0:01:18]} f6 {[%emt 0:00:04]} 24. Rh8+ {[%emt 0:04:58]} Kf7 {[%emt 0:00:04]} 25. Qh5+ {[%emt 0:00:23]} g6 {[%emt 0:02:00]} 26. Qh7+ {[%emt 0:00:25]} Ke8 {[%emt 0:00:03]} 27. Qxg6+ {[%emt 0:00:06]} Kd8 {[%emt 0:00:17]} 28. Qxf6+ {[%emt 0:00:16]} Ke8 {[%emt 0:00:02]} 29. Qg6+ {[%emt 0:00:59]} Rcf7 {[%emt 0:00:37]} 30. Rxf8+ {[%emt 0:00:47]} Kxf8 {[%emt 0:00:04]} 31. Bh6+ {[%emt 0:00:31]} Ke7 {[%emt 0:00:05]} 32. Bg5+ {[%emt 0:00:30]} Kf8 {[%emt 0:00:14]} 33. Qh6+ {[%emt 0:00:30]} Ke8 {[%emt 0:00:33]} 34. Qh8+ {[%emt 0:00:29]} Kd7 {[%emt 0:00:42]} 35. Rxc6 {[%emt 0:00:30]} Kxc6 {[%emt 0:00:05]} 36. Qe8+ {[%emt 0:00:07]} Rd7 {[%emt 0:01:32]} 37. Bf4 {[%emt 0:00:11]} Qxf4 {[%emt 0:00:32]} 38. Nxf4 {[%emt 0:00:07]} Bxf4 {[%emt 0:00:03]} 39. Qxe6+ {[%emt 0:00:28]} Bd6 {[%emt 0:00:22]} 40. Qxe4+ {[%emt 0:00:00]} Kc7 {[%emt 0:00:00]} 41. Kd2 {[%emt 0:01:47]} Rf7 {[%emt 0:00:57]} 42. f3 {[%emt 0:02:04]} Rf4 {[%emt 0:00:16]} 43. Qd5 {[%emt 0:00:19]} Rf8 {[%emt 0:02:13]} 44. g5 {[%emt 0:00:48]} Rd8 {[%emt 0:01:14]} 45. Kd3 {[%emt 0:01:11]} Rd7 {[%emt 0:00:46]} 46. g6 {[%emt 0:01:04]} Bf8 {[%emt 0:00:04]} 47. Qe5+ {[%emt 0:00:28]} Kc6 {[%emt 0:00:29]} 48. Qe6+ {[%emt 0:00:16]} Kc7 {[%emt 0:00:15]} 49. Qxa6 {[%emt 0:01:08]} Bg7 {[%emt 0:00:04]} 50. Qa7+ {[%emt 0:00:16]} Kd8 {[%emt 0:00:09]} 51. Qa8+ {[%emt 0:00:27]} Kc7 {[%emt 0:00:08]} 52. Qe4 {[%emt 0:00:27]} 1-0

[Event "European Amateur-ch U2300 2019"]
[Site "Rhodes"]
[Date "2019.04.11"]
[Round "6.2"]
[White "Cmiel, Thorsten"]
[Black "Van De Perre, Tom"]
[Result "1-0"]
[ECO "B23"]
[WhiteElo "2109"]
[BlackElo "2102"]
[Annotator "NA"]
[PlyCount "87"]
[EventDate "2019.04.06"]
[EventType "swiss"]
[EventCountry "GRE"]
[SourceTitle "playchess.com"]
[Source "ChessBase"]
[SourceQuality "1"]
[TimeControl "40/5400+30:1800+30"]

1. e4 {[%emt 0:00:00]} c5 {[%emt 0:00:00]} 2. Nc3 {[%emt 0:00:00]} e6 {[%emt 0:00:04]} 3. Nge2 {[%emt 0:00:00]} a6 {[%emt 0:00:24]} 4. g3 {[%emt 0:00:00]} b5 {[%emt 0:02:07]} 5. Bg2 {[%emt 0:00:00]} Bb7 {[%emt 0:01:21]} 6. O-O {[%emt 0:00:09]} d6 {[%emt 0:10:17]} 7. d4 {[%emt 0:00:33] B23: Closed Sicilian: Lines without g3} Nd7 {[%emt 0:04:05]} (7... cxd4 8. Nxd4 Nc6 9. a4 b4 10. Na2 Nxd4 11. Qxd4 a5 12. Rd1 Ne7 13. b3 Nc6 14. Qd2 Be7 {½-½ (28) Fedorov,A (2603)-Mamedyarov,S (2657) Moscow 2005}) 8. a4 $146 {[%emt 0:13:04]} ({Predecessor:} 8. dxc5 Nxc5 9. b4 Nd7 10. a4 bxa4 11. Bf4 Qc7 12. Nxa4 Ngf6 13. Qd3 Be7 14. c4 Ne5 15. Bxe5 dxe5 {0-1 (67) Liedtke,M (2279)-Janzelj,T (2391) Pardubice 2017}) 8... b4 {[%emt 0:00:54]} 9. Na2 {[%emt 0:00:09]} a5 {[%emt 0:01:01]} 10. d5 {[%emt 0:05:18]} exd5 {[%emt 0:06:22]} 11. exd5 {[%emt 0:00:16]} Ngf6 {[%emt 0:00:17]} 12. c4 {[%emt 0:00:40]} Ne5 {[%emt 0:06:07]} 13. b3 {[%emt 0:00:28]} Qd7 {[%emt 0:04:06]} 14. Nf4 {[%emt 0:02:50]} Qc7 {[%emt 0:04:20]} 15. Bb2 {[%emt 0:03:28]} O-O-O {[%emt 0:01:15]} 16. Nc1 {[%emt 0:01:36]} h5 {[%emt 0:01:57]} 17. h3 {[%emt 0:01:45]} Kb8 {[%emt 0:03:22]} 18. Ncd3 {[%emt 0:01:03]} Ned7 {[%emt 0:04:53]} 19. Re1 $14 {[%emt 0:01:07]} (19. h4 $16) 19... g5 {[%emt 0:13:12]} 20. Ne6 {[%emt 0:13:12]} fxe6 21. dxe6 {[%emt 0:00:02]} Bg7 {[%emt 0:17:22]} 22. exd7 {[%emt 0:08:25]} Qxd7 {[%emt 0:00:47]} 23. Bxb7 {[%emt 0:07:09]} Qxb7 {[%emt 0:00:05]} 24. Qc1 {[%emt 0:00:58]} Nh7 {[%emt 0:04:29]} 25. Qd2 {[%emt 0:13:11]} Rhe8 {[%emt 0:04:28]} 26. Re2 {[%emt 0:06:14]} Qf7 {[%emt 0:02:24]} 27. Rae1 {[%emt 0:01:02]} Bxb2 {[%emt 0:00:42]} 28. Nxb2 {[%emt 0:00:38]} Kc7 {[%emt 0:00:17]} 29. Nd1 {[%emt 0:02:01]} Rxe2 {[%emt 0:01:16]} 30. Qxe2 {[%emt 0:00:27]} Nf6 {[%emt 0:00:55]} 31. Ne3 {[%emt 0:05:28]} Rf8 {[%emt 0:03:51]} 32. Qf3 {[%emt 0:01:48]} g4 {[%emt 0:01:40]} 33. hxg4 {[%emt 0:03:00]} Nxg4 {[%emt 0:00:52]} 34. Nd5+ {[%emt 0:03:18]} Kb8 {[%emt 0:00:08]} 35. Qxf7 {[%emt 0:03:50]} Rxf7 {[%emt 0:00:01]} 36. f4 {[%emt 0:00:28]} Nf6 {[%emt 0:01:25]} 37. Nxf6 {[%emt 0:00:20]} Rxf6 {[%emt 0:00:01]} 38. Kf2 {[%emt 0:00:53]} h4 {[%emt 0:00:44]} 39. Re7 {[%emt 0:01:10]} hxg3+ {[%emt 0:00:52]} 40. Kxg3 {[%emt 0:00:00]} Rg6+ {[%emt 0:00:00]} 41. Kf3 {[%emt 0:00:51]} Rh6 {[%emt 0:01:25]} 42. f5 {[%emt 0:05:08]} Kc8 {[%emt 0:04:25]} 43. Kg4 {[%emt 0:08:04]} Kd8 {[%emt 0:00:41]} 44. Re3 {[%emt 0:02:44]} 1-0

[Event "European Amateur-ch U2300 2019"]
[Site "Rhodes"]
[Date "2019.04.11"]
[Round "6.3"]
[White "Andreev, Stanislav"]
[Black "Zherebtsova, Alexandra"]
[Result "1/2-1/2"]
[ECO "A90"]
[WhiteElo "2140"]
[BlackElo "2203"]
[Annotator "NA"]
[PlyCount "90"]
[EventDate "2019.04.06"]
[EventType "swiss"]
[EventCountry "GRE"]
[SourceTitle "playchess.com"]
[Source "ChessBase"]
[SourceQuality "1"]
[TimeControl "40/5400+30:1800+30"]

1. d4 {[%emt 0:00:00]} f5 {[%emt 0:00:00]} 2. g3 {[%emt 0:01:58]} Nf6 {[%emt 0:00:00]} 3. Bg2 {[%emt 0:00:42]} e6 {[%emt 0:00:40]} 4. c4 {[%emt 0:02:34]} c6 {[%emt 0:00:31]} 5. Nh3 {[%emt 0:02:21]} d6 {[%emt 0:01:05]} 6. f3 {[%emt 0:08:41]} Be7 {[%emt 0:06:11]} 7. Nf2 {[%emt 0:05:54]} Nbd7 {[%emt 0:21:01]} 8. O-O {[%emt 0:05:51]} O-O {[%emt 0:06:04]} 9. Qc2 {[%emt 0:15:03]} Qb6 {[%emt 0:15:01]} 10. e3 {[%emt 0:03:02]} c5 {[%emt 0:05:27]} 11. Rd1 {[%emt 0:02:35]} d5 $14 {[%emt 0:12:33]} 12. b3 {[%emt 0:01:41]} dxc4 {[%emt 0:09:36]} 13. bxc4 {[%emt 0:01:07]} cxd4 {[%emt 0:01:03]} 14. exd4 {[%emt 0:01:20]} e5 {[%emt 0:00:16]} 15. c5 {[%emt 0:07:22]} Qc7 {[%emt 0:04:24]} 16. Re1 {[%emt 0:18:32]} Rf7 {[%emt 0:07:42]} 17. dxe5 {[%emt 0:01:09]} Nxe5 {[%emt 0:00:18]} 18. Bf4 {[%emt 0:03:57]} Nfd7 {[%emt 0:00:15]} 19. Nd3 {[%emt 0:05:34]} Nxd3 {[%emt 0:04:25]} 20. Bxc7 {[%emt 0:01:16]} Nxe1 {[%emt 0:00:02]} 21. Qc4 {[%emt 0:01:25]} Nxg2 {[%emt 0:03:18]} 22. Kxg2 {[%emt 0:00:08]} Nxc5 {[%emt 0:00:11]} 23. Nc3 {[%emt 0:02:57]} Be6 {[%emt 0:00:04]} 24. Qe2 {[%emt 0:00:22]} a6 {[%emt 0:01:13]} 25. Rd1 {[%emt 0:01:48]} b5 {[%emt 0:00:22]} 26. Bd6 {[%emt 0:00:49]} Re8 {[%emt 0:00:41]} 27. Bxe7 {[%emt 0:01:11]} Rfxe7 {[%emt 0:00:07]} 28. Qf2 {[%emt 0:01:59]} b4 {[%emt 0:00:49]} 29. Qxc5 {[%emt 0:00:58]} bxc3 {[%emt 0:00:04]} 30. Qxc3 {[%emt 0:00:16]} Bxa2 {[%emt 0:00:16]} 31. Rd2 {[%emt 0:00:45]} Bf7 {[%emt 0:00:47]} 32. Kf2 {[%emt 0:00:58]} f4 {[%emt 0:00:39]} 33. Qb4 {[%emt 0:00:42]} fxg3+ {[%emt 0:00:17]} 34. hxg3 {[%emt 0:00:05]} Re5 {[%emt 0:00:48]} 35. g4 {[%emt 0:00:50]} a5 {[%emt 0:00:33]} 36. Qa4 {[%emt 0:00:15]} h5 {[%emt 0:00:28]} 37. gxh5 {[%emt 0:01:00]} Rxh5 {[%emt 0:00:11]} 38. Rd7 {[%emt 0:00:51]} Rf8 {[%emt 0:00:37]} 39. Qg4 {[%emt 0:00:33]} Rh6 {[%emt 0:00:50]} 40. Ra7 {[%emt 0:00:00]} Rf6 {[%emt 0:00:00]} 41. Qg5 {[%emt 0:04:40]} a4 {[%emt 0:05:48]} 42. Rxa4 {[%emt 0:06:21]} Bb3 {[%emt 0:04:22]} 43. Rg4 {[%emt 0:04:28]} Rxf3+ {[%emt 0:00:40]} 44. Ke2 {[%emt 0:00:40]} R3f7 {[%emt 0:02:32]} 45. Rg3 {[%emt 0:03:26]} Be6 {[%emt 0:05:45]} 1/2-1/2